fUSD/lending_fUSD_20240708
["ID","MTS","AMOUNT","RATE_DAILY","PERIOD"]
[331431529,1720397017458,151.070809,0.00025,61]
[331431530,1720397019680,151.070809,0.00025,60]
[331431531,1720397029010,151.070809,0.00025,61]
[331431532,1720397031391,151.070809,0.00025,62]
[331431533,1720397035402,151.070809,0.00025,63]
[331431534,1720397040345,151.070809,0.00025,66]
[331431535,1720397044742,151.070809,0.00025,67]
[331431536,1720397069564,151.070809,0.00025,68]
[331431541,1720397215052,2204.42431821,0.00011199,2]
[331431545,1720397261202,1271.56510506,0.00011199,2]
[331431546,1720397304579,470.23,0.00010096,2]
[331431605,1720397388232,-156.28,0.00012028,2]
[331431606,1720397388254,-250.0,0.00012031,2]
[331431607,1720397388276,-1000.0,0.00012058,2]
[331431608,1720397388298,-616.41,0.00012069,2]
[331431609,1720397388324,-186.68,0.00012202,2]
[331431610,1720397388344,-176.19695237,0.00012237,2]
[331431611,1720397388364,-413.27406791,0.00012314,2]
[331431612,1720397388385,-470.23,0.0001236,2]
[331431613,1720397388405,-6649.0,0.00012392,2]
[331431614,1720397388427,-156.28,0.00012655,2]
[331431615,1720397388448,-300.0,0.00012699,2]
[331431616,1720397388468,-150.0,0.000127,2]
[331431617,1720397388488,-354.98,0.000127,2]
[331431618,1720397388509,-419.26,0.000127,2]
[331431619,1720397388529,-528.66,0.000127,2]
[331431620,1720397388549,-400.62434463,0.00012702,2]
[331431621,1720397388570,-150.99,0.00012759,2]
[331431622,1720397388590,-1358.7,0.00012767,2]
[331431623,1720397388612,-1047.07962,0.0001277,2]
[331431624,1720397388636,-220.42,0.00012795,2]
[331431625,1720397388659,-701.5384,0.000128,2]
[331431626,1720397388680,-13142.7856,0.000128,2]
[331431627,1720397388702,-28317.916,0.000128,2]
[331431628,1720397388723,-17425.4976,0.000128,2]
[331431629,1720397388744,-363.7067,0.000128,2]
[331431630,1720397388772,-1000.0,0.000128,2]
[331431631,1720397388792,-7500.0,0.000128,2]
[331431632,1720397388814,-179.28516623,0.000128,2]
[331431633,1720397388840,-321.4005033,0.000128,2]
[331431634,1720397388861,-939.50695416,0.000128,2]
[331431635,1720397388881,-12877.4,0.00012893,2]
[331431636,1720397388901,-500.0,0.00012896,2]
[331431637,1720397388923,-3157873.2995914,0.000129,2]
[331431651,1720397431883,-221.80430163,0.00012237,2]
[331431652,1720397431892,-665.18569837,0.000129,2]
[331431653,1720397432281,-999.97,0.000129,2]
[331431654,1720397432293,-1688.687,0.000129,2]
[331431661,1720397432327,-3.70964137,0.000129,2]
[331431662,1720397432342,-670.53922218,0.000129,2]
[331431913,1720397439174,-2790.75,0.000129,2]
[331431914,1720397439191,-599494.86758669,0.000129,2]
[331431915,1720397439216,-272.32915281,0.000129,2]
[331431916,1720397439228,-702.20867333,0.000129,2]
[331431917,1720397439810,-586607.7141726,0.000129,2]
[331431918,1720397439820,-774.0,0.000129,2]
[331431919,1720397439831,-171.24663349,0.000129,2]
[331431920,1720397439841,-188.35482,0.000129,2]
[331431921,1720397439855,-1000.0,0.000129,2]
[331431922,1720397439866,-1500.0,0.00012905,2]
[331431923,1720397439877,-300.0,0.00012909,2]
[331431924,1720397439887,-856.577,0.00012989,2]
[331431925,1720397439897,-2064.7499511,0.0001299,2]
[331431926,1720397439907,-188.35482,0.0001299,2]
[331431927,1720397439918,-32402.1946333,0.0001299,2]
[331431928,1720397439928,-5149.6462462,0.0001299,2]
[331431929,1720397439938,-1061.80299204,0.00012999,3]
[331431930,1720397439948,-1061.80299205,0.00012999,3]
[331431931,1720397439958,-1831.83045146,0.00012999,3]
[331431932,1720397439968,-339.88069292,0.00012999,2]
[331431933,1720397439979,-151.477,0.00012999,2]
[331431934,1720397439990,-150.0,0.00012999,2]
[331431935,1720397440000,-198.592,0.00012999,2]
[331431936,1720397440011,-205.477,0.00012999,2]
[331431937,1720397440021,-193.746,0.00012999,2]
[331431938,1720397440031,-150.0,0.00012999,2]
[331431939,1720397440041,-1103.056,0.00012999,2]
[331431940,1720397440052,-2618496.89810857,0.00013,2]
[331431941,1720397440066,-317.28368491,0.00013,2]
[331431942,1720397440089,-33312.68517426,0.00013,2]
[331431943,1720397440125,-7825.20133989,0.00013,2]
[331431944,1720397440137,-860.97895643,0.00013,2]
[331431945,1720397440148,-559.0,0.00013,2]
[331431974,1720397443170,-254.77388222,0.00013,2]
[331431977,1720397445977,-11175.97796026,0.00013,2]
[331431978,1720397445990,-1397.51712,0.00013,2]
[331431979,1720397446039,-5591.0,0.00013,2]
[331431980,1720397446051,-951.48938794,0.00013,2]
[331431981,1720397446063,-55743.89402048,0.00013,2]
[331431982,1720397446099,-17975.35639844,0.00013,2]
[331431984,1720397530393,625.64470959,0.00011199,2]
[331431986,1720397580567,7258.35536997,0.00011199,2]
[331431987,1720397656349,2493.32509225,0.00011199,2]
[331431988,1720397837692,464.77,0.00010328,2]
[331431990,1720398251025,304.6032765,0.00011199,2]
[331431991,1720398259018,304.6032765,0.00011199,2]
[331431992,1720398260280,1343.27208998,0.00011199,2]
[331431993,1720398333747,159.06163716,0.00011199,2]
[331431994,1720398348273,441.53,0.00010376,2]
[331432025,1720398632061,-441.08533386,0.00011961,2]
[331432026,1720398632285,-852.2841565,0.00011961,2]
[331432027,1720398632297,-429.8742519,0.00011961,2]
[331432028,1720398632314,-469.48305765,0.00011961,2]
[331432030,1720398632380,-624.3378638,0.00011961,2]
[331432031,1720398632391,-165.3121362,0.00012145,2]
[331432032,1720398632475,-84.6878638,0.00012145,2]
[331432034,1720398632484,-250.0,0.0001221,2]
[331432036,1720398632494,-304.6032765,0.00012302,2]
[331432038,1720398632503,-159.68599667,0.00012377,2]
[331432040,1720398632512,-1000.0,0.00012477,2]
[331432041,1720398632522,-245.23,0.00012535,2]
[331432042,1720398632531,-300.1,0.000126,2]
[331432043,1720398632541,-441.53,0.0001264,2]
[331432044,1720398632550,-300.0,0.00012764,2]
[331432045,1720398632560,-300.0,0.00012772,2]
[331432046,1720398632569,-185.1712964,0.00012791,2]
[331432047,1720398632579,-2684.5,0.00012791,2]
[331432048,1720398632589,-310.52766257,0.00012791,2]
[331432049,1720398632601,-189.46233743,0.00012791,2]
[331432050,1720398632611,-5698.68165736,0.000128,2]
[331432051,1720398632623,-9417.06768576,0.000128,2]
[331432052,1720398632635,-84884.25065688,0.000128,2]
[331432053,1720398632645,-638.4086,0.000128,2]
[331432054,1720398632654,-332.9724,0.000128,2]
[331432055,1720398632664,-355.03,0.000128,2]
[331432056,1720398632673,-854.45,0.000128,2]
[331432057,1720398632683,-416.59,0.000128,2]
[331432058,1720398632693,-14742.243,0.000128,2]
[331432059,1720398632703,-150.0,0.00012845,2]
[331432060,1720398632713,-1227.38198,0.0001287,2]
[331432061,1720398632722,-250.60377002,0.0001289,2]
[331432062,1720398632731,-6697.00760226,0.000129,2]
[331432063,1720398632743,-89968.95159774,0.000129,2]
[331432064,1720398632753,-3306.622,0.000129,2]
[331432065,1720398632762,-165.73977734,0.000129,2]
[331432066,1720398632772,-173.53641197,0.000129,2]
[331432067,1720398632781,-1388.0,0.000129,2]
[331432068,1720398632790,-171.24663349,0.000129,2]
[331432069,1720398632800,-853.51,0.00012986,2]
[331432070,1720398632810,-355.03,0.00012986,2]
[331432071,1720398632819,-5683.1326424,0.0001299,2]
[331432072,1720398632828,-32265.6613526,0.0001299,2]
[331432073,1720398632837,-1881.9036168,0.0001299,2]
[331432074,1720398632847,-177.65772177,0.0001299,2]
[331432075,1720398632856,-605.31191333,0.00012999,2]
[331432076,1720398632866,-724.0,0.00013,2]
[331432077,1720398632875,-568159.00698214,0.00013,2]
[331432078,1720398632887,-299.99,0.00013,2]
[331432080,1720398638157,-1466.694531,0.00013,2]
[331432084,1720398638553,-1707.0,0.00013,2]
[331432098,1720398639485,394.13,0.00010959,2]
[331432099,1720398640289,-1383.28060916,0.00012999,2]
[331432100,1720398640299,-7009.45403632,0.00013,2]
[331432101,1720398640364,-3355.96808732,0.00013,2]
[331432102,1720398640376,-527.91977742,0.00013,2]
[331432103,1720398640388,-737.81953187,0.00013,2]
[331432131,1720398643301,-222.1,0.00012741,2]
[331432132,1720398643311,-114.618,0.00013,2]
[331432133,1720398643322,-28035.519397,0.00013,2]
[331432134,1720398643335,-87534.12617305,0.00013,2]
[331432135,1720398643373,-1864.09782986,0.00013,2]
[331432274,1720398650022,389.86,0.00010959,2]
[331432275,1720398655794,10000.0,0.00027,120]
[331432276,1720398687768,3027.57638009,0.00011199,2]
[331432277,1720398709506,3929.5070928,0.00011199,2]
[331432278,1720398906268,449.71,0.0001029,2]
[331432279,1720398932430,407.47074942,0.00011199,2]
[331432281,1720399049025,7358.96859089,0.00011199,2]
[331432289,1720399129119,155.0,0.00011199,2]
[331432294,1720399422721,932.23102873,0.00011199,2]
[331432295,1720399475307,446.55,9.927e-05,2]
[331432296,1720399494526,3111.08002322,0.00011199,2]
[331432297,1720399508656,310.62854789,0.00011199,2]
[331432298,1720399513552,2738.14487436,0.00011199,2]
[331432299,1720399514551,3768.61597897,0.00011199,2]
[331432300,1720399527103,301.36602925,0.00011199,2]
[331432301,1720399531101,4088.30530853,0.00011199,2]
[331432308,1720399622871,5519.68016868,0.00011199,2]
[331432317,1720399691488,1903.65279599,0.00011199,2]
[331432318,1720399692224,722.84871215,0.00011199,2]
[331432319,1720399710756,528.23282693,0.00011199,2]
[331432329,1720399752041,536.16233442,0.00011199,2]
[331432333,1720399775075,155.14665417,0.00011199,2]
[331432334,1720399784117,675.76502173,0.00011199,2]
[331432336,1720399794248,519.88634596,0.00011199,2]
[331432339,1720399818854,2202.29524664,0.00011199,2]
[331432345,1720399833359,-538.88,0.00011579,2]
[331432349,1720399833449,-7729.55693145,0.00011579,2]
[331432350,1720399833460,-1057.3,0.00011579,2]
[331432351,1720399833471,-446.17024212,0.00011579,2]
[331432352,1720399833483,-643.67282643,0.00011579,2]
[331432353,1720399833492,-223.09000027,0.00011591,2]
[331432354,1720399833504,-26.90999973,0.00011591,2]
[331432355,1720399833517,-161.13595753,0.00011761,2]
[331432356,1720399833526,-317.3850165,0.00011762,2]
[331432357,1720399833537,-566.55211337,0.00011762,2]
[331432358,1720399833549,-440.76621775,0.00011762,2]
[331432359,1720399833586,-347.40099992,0.00011762,2]
[331432360,1720399833683,-577.50775,0.00011762,2]
[331432523,1720399838235,-1818.76470246,0.00011762,2]
[331432524,1720399838246,-196.18,0.00011887,2]
[331432525,1720399838256,-154.19,0.00011907,2]
[331432526,1720399838266,-154.19,0.0001197,2]
[331432527,1720399838276,-154.19,0.00012032,2]
[331432528,1720399838286,-154.19,0.00012094,2]
[331432529,1720399838297,-154.19,0.00012156,2]
[331432530,1720399838307,-446.55,0.00012191,2]
[331432531,1720399838317,-154.19,0.00012218,2]
[331432532,1720399838327,-77.09082937,0.00012218,2]
[331432533,1720399838340,-565.71917063,0.00012218,2]
[331432534,1720399838354,-173.3514,0.00012273,2]
[331432535,1720399838366,-154.19,0.0001228,2]
[331432536,1720399838377,-634.97956447,0.00012302,2]
[331432537,1720399838387,-1000.0,0.00012316,2]
[331432538,1720399838398,-150.0,0.00012329,2]
[331432539,1720399838408,-150.0,0.00012329,2]
[331432540,1720399838419,-154.19,0.00012342,2]
[331432541,1720399838429,-154.19,0.00012404,2]
[331432542,1720399838440,-154.19,0.00012466,2]
[331432543,1720399838450,-1985.799865,0.00012488,2]
[331432544,1720399838462,-2000.0,0.00012488,2]
[331432545,1720399838489,-714.38635832,0.00012488,2]
[331432546,1720399838501,-5548.77540591,0.00012488,2]
[331432547,1720399838523,-552.08203642,0.00012488,2]
[331432566,1720399840298,-5562.12000001,0.00012488,2]
[331432567,1720399840309,-18369.83633434,0.00012488,2]
[331432568,1720399840319,-201.1,0.00012499,2]
[331432569,1720399840329,-154.19,0.00012528,2]
[331432570,1720399840338,-174.36,0.0001277,2]
[331432571,1720399840348,-281.1116,0.000128,2]
[331432572,1720399840364,-20897.06413702,0.000128,2]
[331432573,1720399840376,-9311.00656298,0.000128,2]
[331432574,1720399840386,-500.0,0.000128,2]
[331432575,1720399840395,-22122.4483,0.000128,2]
[331432576,1720399840405,-330.757,0.000128,2]
[331432577,1720399840415,-164.95,0.000128,2]
[331432578,1720399840425,-283.914,0.000128,2]
[331432579,1720399840434,-1022.81832,0.0001287,2]
[331432580,1720399840444,-500.0,0.00012895,2]
[331432581,1720399840454,-500.0,0.00012896,2]
[331432582,1720399840463,-163.92268904,0.00012899,2]
[331432583,1720399840473,-47749.3829,0.000129,2]
[331432584,1720399840482,-159.80473577,0.000129,2]
[331432585,1720399840491,-166.22184117,0.000129,2]
[331432586,1720399840502,-321.52082712,0.000129,2]
[331432587,1720399840512,-1000.0,0.000129,2]
[331432588,1720399840526,-1500.0,0.00012943,2]
[331432589,1720399840535,-300.0,0.00012979,2]
[331432590,1720399840545,-7498.1523444,0.0001299,2]
[331432591,1720399840556,-3525.8808594,0.0001299,2]
[331432592,1720399840568,-56940.8843301,0.0001299,2]
[331432593,1720399840578,-5618.7345952,0.0001299,2]
[331432594,1720399840587,-861.58065104,0.00012999,2]
[331432595,1720399840599,-1318.47881185,0.00012999,3]
[331432596,1720399840612,-1103.056,0.00012999,2]
[331432597,1720399840622,-5831.042,0.00012999,2]
[331432598,1720399840631,-14362.713,0.00012999,2]
[331432599,1720399840640,-1665.0,0.00012999,2]
[331432600,1720399840650,-1199.0,0.00012999,2]
[331432601,1720399840659,-151.477,0.00012999,2]
[331432602,1720399840668,-150.0,0.00012999,2]
[331432603,1720399840678,-845.0,0.00013,2]
[331432604,1720399840688,-30559.0,0.00013,2]
[331432605,1720399840698,-17118.77273415,0.00013,2]
[331432606,1720399840978,-1.373e-05,0.00013,2]
[331432607,1720399840994,-3657.48312635,0.00013,2]
[331432608,1720399841099,-7949.05760179,0.00013,2]
[331432609,1720399841113,-522.809,0.00013,2]
[331432610,1720399841124,-353.53867168,0.00013,2]
[331432611,1720399841135,-474.47394587,0.00013,2]
[331432612,1720399841146,-516.80297179,0.00013,2]
[331432613,1720399841158,-7750.51946916,0.00013,2]
[331432614,1720399841169,-285754.0610664,0.00013,2]
[331432615,1720399841193,-34540.33623432,0.00013,2]
[331432616,1720399841204,-101526.82011354,0.00013,2]
[331432617,1720399841216,-568.13080662,0.00013,2]
[331432618,1720399841227,-367.96389518,0.00013,2]
[331432619,1720399841239,-1253.83278851,0.00013,2]
[331432620,1720399841249,-18957.30321431,0.00013,2]
[331432621,1720399841261,-1374.78418542,0.00013,2]
[331432622,1720399841273,-14901.011465,0.00013,2]
[331432623,1720399841284,-1408.02620954,0.00013,2]
[331432624,1720399842895,-159.69389414,0.000129,2]
[331432625,1720399842904,-119.20758814,0.00013,2]
[331432662,1720399843422,-319.92311454,0.00013,2]
[331432678,1720399843768,-35788.49068219,0.00013,2]
[331432679,1720399843780,-277.18048771,0.00013,2]
[331432689,1720399844999,-622.24139103,0.00013,2]
[331432690,1720399845037,-430.79032552,0.00012999,2]
[331432691,1720399845047,-6547.70967448,0.00013,2]
[331432692,1720399845075,-542.19647551,0.00013,2]
[331432706,1720399847982,-198.592,0.00012999,2]
[331432707,1720399847991,-4154.59289459,0.00013,2]
[331432708,1720399848016,-730.0,0.00013,2]
[331432709,1720399848028,-132323.47277398,0.00013,2]
[331432710,1720399848127,-6200.47710795,0.00013,2]
[331432711,1720399848212,-508.7088451,0.00013,2]
[331432712,1720399848233,-1596.34964814,0.00013,2]
[331432713,1720399848245,-730.075,0.00013,2]
[331432714,1720399848328,-15451.33542455,0.00013,2]
[331432715,1720399848339,-166674.99999999,0.00013,2]
[331432716,1720400006247,482.75596204,0.00011199,2]
[331432717,1720400017003,253.33731995,0.00011199,2]
[331432718,1720400043868,3251.98740574,0.00011199,2]
[331432719,1720400049303,169.91389328,0.00011199,2]
[331432720,1720400082865,155.26840283,0.00011199,2]
[331432721,1720400086600,164.1560373,0.00011199,2]
[331432722,1720400093869,155.24121393,0.00011199,2]
[331432723,1720400102369,309.02130053,0.00011199,2]
[331432724,1720400104896,155.29862192,0.00011199,2]
[331432725,1720400121703,158.64365863,0.00011199,2]
[331432726,1720400129607,439.52111545,0.00011199,2]
[331432729,1720400151601,401.89,0.00010406,2]
[331432730,1720400152379,218.87668699,0.00011199,2]
[331432731,1720400162978,155.22310351,0.00011199,2]
[331432732,1720400165702,405.14638905,0.00011199,2]
[331432733,1720400232757,155.20374793,0.00011199,2]
[331432734,1720400257148,367.12283344,0.00011199,2]
[331432735,1720400261866,159.30941425,0.00011199,2]
[331432736,1720400276032,499.80686348,0.00011199,2]
[331432737,1720400305755,292.89590012,0.00011199,2]
[331432738,1720400407528,155.94799773,0.00011199,2]
[331432739,1720400500228,739.18134344,0.00011199,2]
[331432740,1720400525392,183.85785098,0.00011199,2]
[331432741,1720400530250,155.33944343,0.00011199,2]
[331432742,1720400546290,155.29460536,0.00011199,2]
[331432743,1720400547856,206.29264366,0.00011199,2]
[331432744,1720400548806,367.25582466,0.00011199,2]
[331432745,1720400550647,235.94587051,0.00011199,2]
[331432746,1720400569717,520.08653154,0.00011199,2]
[331432747,1720400574190,491.62487956,0.00011199,2]
[331432748,1720400590037,839.18546949,0.00011199,2]
[331432749,1720400596834,155.0,0.00011199,2]
[331432750,1720400626839,155.0,0.00011199,2]
[331432751,1720400639515,659.63209981,0.00011199,2]
[331432752,1720400640990,530.62911332,0.00011199,2]
[331432753,1720400664290,518.82270875,0.00011199,2]
[331432754,1720400666110,465.90561597,0.00011199,2]
[331432755,1720400669750,155.0,0.00011199,2]
[331432756,1720400672813,526.547858,0.00011199,2]
[331432757,1720400672880,155.31483576,0.00011199,2]
[331432758,1720400694382,155.0,0.00011199,2]
[331432759,1720400700551,163.95538761,0.00011199,2]
[331432760,1720400707156,547.24050391,0.00011199,2]
[331432761,1720400713863,368.66177259,0.00011199,2]
[331432762,1720400713979,155.24332289,0.00011199,2]
[331432763,1720400717355,410.72,0.00010303,2]
[331432767,1720400759076,155.99321892,0.00011199,2]
[331432785,1720400971056,155.06185702,0.00011199,2]
[331432786,1720400972474,155.0,0.00011199,2]
[331432802,1720401032147,-250.0,0.00012173,2]
[331432805,1720401032156,-86.22,0.00012195,2]
[331432819,1720401032291,-135.88,0.00012195,2]
[331432822,1720401032302,-228.4464,0.00012214,2]
[331432825,1720401032313,-74.13696026,0.00012302,2]
[331432828,1720401032325,-659.62870651,0.00012302,2]
[331432832,1720401032337,-266.54313384,0.00012302,2]
[331432835,1720401032348,-69.70361841,0.00012302,2]
[331432875,1720401037810,-85.29638159,0.00012302,2]
[331432877,1720401037820,-155.20149999,0.00012302,2]
[331432879,1720401037831,-155.21303222,0.00012314,2]
[331432881,1720401037841,-155.34297194,0.00012314,2]
[331432883,1720401037851,-167.85515907,0.00012314,2]
[331432885,1720401037869,-285.02944339,0.00012314,2]
[331432886,1720401037879,-525.39189184,0.00012314,2]
[331432887,1720401037890,-1000.0,0.00012351,2]
[331432888,1720401037900,-172.65,0.00012406,2]
[331432889,1720401037911,-410.72,0.00012567,2]
[331432890,1720401037926,-1000.0,0.000127,2]
[331432891,1720401037937,-544.75624556,0.0001279,2]
[331432892,1720401037947,-300.0,0.00012799,2]
[331432893,1720401037960,-1000.0,0.000128,2]
[331432894,1720401037971,-417.40934,0.0001287,2]
[331432895,1720401037981,-2081.42078183,0.0001288,2]
[331432896,1720401037991,-544.75624557,0.0001289,2]
[331432897,1720401038002,-11243.7493,0.0001289,2]
[331432898,1720401038012,-37722.3585,0.0001289,2]
[331432899,1720401038023,-14860.7052,0.0001289,2]
[331432900,1720401038034,-4529.4146,0.0001289,2]
[331432901,1720401038044,-52392.939076,0.0001299,2]
[331432902,1720401038054,-5640.4743785,0.0001299,2]
[331432903,1720401038064,-5544.4637634,0.0001299,2]
[331432904,1720401038074,-215.39516276,0.00012999,2]
[331432905,1720401038085,-205.477,0.00012999,2]
[331432906,1720401038095,-193.746,0.00012999,2]
[331432907,1720401038105,-150.0,0.00012999,2]
[331432908,1720401038116,-45369.28068668,0.00013,2]
[331432909,1720401038126,-6319.22691805,0.00013,2]
[331432910,1720401038137,-9288.07784574,0.00013,2]
[331432911,1720401038147,-1000.0,0.00013,2]
[331432912,1720401038158,-1000.0,0.00013,2]
[331432913,1720401038173,-1000.0,0.00013,2]
[331432914,1720401038183,-1000.0,0.00013,2]
[331432915,1720401038194,-1000.0,0.00013,2]
[331432916,1720401038205,-1000.0,0.00013,2]
[331432917,1720401038216,-1000.0,0.00013,2]
[331432918,1720401038227,-1000.0,0.00013,2]
[331432919,1720401038238,-1000.0,0.00013,2]
[331432920,1720401038248,-1000.0,0.00013,2]
[331432921,1720401038259,-1000.0,0.00013,2]
[331432922,1720401038269,-1000.0,0.00013,2]
[331432923,1720401038280,-1000.0,0.00013,2]
[331432924,1720401038291,-1000.0,0.00013,2]
[331432925,1720401038302,-1000.0,0.00013,2]
[331432926,1720401038312,-1000.0,0.00013,2]
[331432927,1720401038322,-1000.0,0.00013,2]
[331432928,1720401038334,-1000.0,0.00013,2]
[331432929,1720401038346,-1000.0,0.00013,2]
[331432930,1720401038357,-1000.0,0.00013,2]
[331432931,1720401038368,-1000.0,0.00013,2]
[331432932,1720401038379,-1000.0,0.00013,2]
[331432933,1720401038391,-163.47041426,0.00013,2]
[331432934,1720401038402,-2000.0,0.00013,2]
[331432935,1720401038413,-200.0,0.00013,2]
[331432938,1720401038428,-2000.0,0.00013,2]
[331432940,1720401038439,-200.0,0.00013,2]
[331432942,1720401038450,-2000.0,0.00013,2]
[331432944,1720401038461,-200.0,0.00013,2]
[331432946,1720401038471,-356.0,0.00013,2]
[331432948,1720401038481,-2406.5817,0.00013,2]
[331432950,1720401038491,-1000.0,0.00013,2]
[331432952,1720401038501,-4238.742,0.00013,2]
[331432955,1720401038511,-225.0,0.00013,2]
[331432958,1720401038521,-1213.7425,0.00013,2]
[331432960,1720401038530,-951.1,0.00013,2]
[331432962,1720401038540,-2000.0,0.00013,2]
[331432964,1720401038549,-200.0,0.00013,2]
[331432966,1720401038559,-511.4164,0.00013,2]
[331432967,1720401038569,-341.0,0.00013014,2]
[331432969,1720401038579,-300.0,0.000131,4]
[331432971,1720401038590,-155.51415492,0.00013128,2]
[331432992,1720401038996,-164.34608351,0.00013128,2]
[331432993,1720401039038,-2000.0,0.0001313,2]
[331432994,1720401039050,-200.0,0.0001313,2]
[331432995,1720401039061,-2000.0,0.0001313,2]
[331432996,1720401039071,-200.0,0.0001313,2]
[331432997,1720401039081,-2000.0,0.0001313,2]
[331432998,1720401039092,-200.0,0.0001313,2]
[331432999,1720401039102,-2000.0,0.0001313,2]
[331433000,1720401039112,-200.0,0.0001313,2]
[331433001,1720401039123,-163.92268902,0.00013161,2]
[331433002,1720401039134,-4048.53928046,0.000132,2]
[331433003,1720401039145,-700.0,0.000132,4]
[331433004,1720401039155,-150.0,0.0001326,2]
[331433005,1720401039170,-2000.0,0.00013261,2]
[331433006,1720401039181,-200.0,0.00013261,2]
[331433007,1720401039191,-2000.0,0.00013261,2]
[331433008,1720401039201,-200.0,0.00013261,2]
[331433009,1720401039211,-2000.0,0.00013261,2]
[331433010,1720401039223,-200.0,0.00013261,2]
[331433011,1720401039235,-2000.0,0.00013261,2]
[331433012,1720401039246,-200.0,0.00013261,2]
[331433013,1720401039256,-9000.627417,0.000133,2]
[331433014,1720401039267,-1100.0,0.000133,4]
[331433015,1720401039278,-241.05,0.0001337,2]
[331433016,1720401039288,-355.03,0.0001337,2]
[331433017,1720401039301,-196.18,0.00013373,2]
[331433019,1720401039312,-417.40934,0.0001339,2]
[331433020,1720401039324,-2000.0,0.00013394,2]
[331433021,1720401039334,-200.0,0.00013394,2]
[331433022,1720401039345,-2000.0,0.00013394,2]
[331433023,1720401039358,-200.0,0.00013394,2]
[331433024,1720401039369,-2000.0,0.00013394,2]
[331433025,1720401039380,-200.0,0.00013394,2]
[331433026,1720401039391,-2000.0,0.00013394,2]
[331433027,1720401039402,-200.0,0.00013394,2]
[331433028,1720401039413,-1500.0,0.000134,4]
[331433029,1720401039431,-13508.0,0.00013439,2]
[331433030,1720401039442,-1000.0,0.00013462,2]
[331433031,1720401039454,-165.49874538,0.00013474,2]
[331433032,1720401039466,-173.53641197,0.00013474,2]
[331433033,1720401039477,-321.75429332,0.00013474,2]
[331433034,1720401039489,-220.24,0.00013479,3]
[331433035,1720401039500,-1900.0,0.000135,4]
[331433036,1720401039511,-310.0,0.00013516,2]
[331433037,1720401039522,-518.56853653,0.00013516,2]
[331433038,1720401039532,-174.36,0.00013528,2]
[331433039,1720401039543,-2000.0,0.00013528,2]
[331433040,1720401039554,-200.0,0.00013528,2]
[331433041,1720401039564,-2000.0,0.00013528,2]
[331433042,1720401039574,-200.0,0.00013528,2]
[331433043,1720401039584,-2000.0,0.00013528,2]
[331433044,1720401039594,-200.0,0.00013528,2]
[331433045,1720401039604,-2000.0,0.00013528,2]
[331433046,1720401039614,-200.0,0.00013528,2]
[331433047,1720401039624,-349.893061,0.00013529,2]
[331433049,1720401039634,-183.602116,0.00013529,2]
[331433050,1720401039644,-300.939437,0.00013529,2]
[331433051,1720401039655,-181.263877,0.00013529,2]
[331433052,1720401039666,-165.64568,0.00013529,2]
[331433053,1720401039682,-544.74964,0.00013529,2]
[331433054,1720401039692,-208.684479,0.00013529,2]
[331433055,1720401039702,-443.454518,0.00013529,2]
[331433056,1720401039712,-167.560964,0.00013529,2]
[331433057,1720401039723,-168.782857,0.00013529,2]
[331433058,1720401039734,-754.255629,0.00013529,2]
[331433059,1720401039744,-154.685864,0.00013529,2]
[331433060,1720401039754,-2220.686739,0.00013529,2]
[331433061,1720401039764,-189.038122,0.00013529,2]
[331433062,1720401039774,-1191.834983,0.00013529,2]